Workbook

Sheet Sheet1
A1: CENTRIC FOUR-BAR DESIGN
A3: GIVEN | M3: Using b
A4: Swing angle | B4: y | C4: 90 | D4: =+C4/2*D_R() -> 0.7853981634 | G4: Using mmin
A6: Transmission Angle | B6: mmin | C6: 43.80599064 | D6: =+C6*D_R() -> 0.7645587687
A8: Initial Crank Angle | B8: b | C8: =+ACOS(SIN(D4)/COS(D6)) -> 0.2013580544 | D8: =+C8/D_R() -> 11.53696669
C9: using m | D9: using b
A10: Link Lengths | B10: a1 | C10: 1 | D10: 1
B11: a2 | C11: =+TAN(D4)/COS(D6)*SQRT(COS(D6)^2-SIN(D4)^2) -> 0.2000001309 | D11: =+TAN(D4)*SIN(C8) -> 0.2000001309
B12: a3 | C12: =+SIN(D4)/COS(D6) -> 0.9797958704 | D12: =+COS(C8) -> 0.9797958704
B13: a4 | C13: =+SQRT(COS(D6)^2-SIN(D4)^2)/COS(D4)/COS(D6) -> 0.2828428976 | D13: =+SIN(C8)/COS(D4) -> 0.2828428976
B14: Swing Angle | C14: =+C15-C16 -> 90
A15: Check | B15: ymax | C15: =+MAX(C18:C91) -> 146.5369667
B16: ymin | C16: =+MIN(C18:C91) -> 56.53696669
A17: q12 | B17: q13 | C17: q14 | D17: m
A18: =+D8 -> 11.53696669 | B18: =FourBar2($C$11,$C$12,$C$13,$C$10,1,A18*D_R())/D_R() -> 11.53696669 | C18: 56.53696669 | D18: =+C18-B18 -> 45 | F18: =+C54-C18 -> 90
A19: 15 | B19: =FourBar2($C$11,$C$12,$C$13,$C$10,1,A19*D_R())/D_R() -> 10.85584138 | C19: 56.66128883 | D19: =+C19-B19 -> 45.80544745
A20: 20 | B20: =FourBar2($C$11,$C$12,$C$13,$C$10,1,A20*D_R())/D_R() -> 9.962638126 | C20: 57.26224183 | D20: 47.29960371
A21: 25 | B21: =FourBar2($C$11,$C$12,$C$13,$C$10,1,A21*D_R())/D_R() -> 9.172200462 | C21: 58.32293019 | D21: 49.15072973
A22: 30 | B22: =FourBar2($C$11,$C$12,$C$13,$C$10,1,A22*D_R())/D_R() -> 8.477484708 | C22: 59.795296 | D22: 51.3178113
A23: 35 | B23: =FourBar2($C$11,$C$12,$C$13,$C$10,1,A23*D_R())/D_R() -> 7.869824003 | C23: 61.62959707 | D23: 53.75977307
A24: 40 | B24: =FourBar2($C$11,$C$12,$C$13,$C$10,1,A24*D_R())/D_R() -> 7.34005812 | C24: 63.77764841 | D24: 56.43759029
A25: 45 | B25: =FourBar2($C$11,$C$12,$C$13,$C$10,1,A25*D_R())/D_R() -> 6.87929145 | C25: 66.19478544 | D25: 59.31549399
A26: 50 | B26: =FourBar2($C$11,$C$12,$C$13,$C$10,1,A26*D_R())/D_R() -> 6.479336182 | C26: 68.84079767 | D26: 62.36146149
A27: 55 | B27: =FourBar2($C$11,$C$12,$C$13,$C$10,1,A27*D_R())/D_R() -> 6.132925898 | C27: 71.68014676 | D27: 65.54722086
A28: 60 | B28: =FourBar2($C$11,$C$12,$C$13,$C$10,1,A28*D_R())/D_R() -> 5.833780069 | C28: 74.68174649 | D28: 68.84796642
A29: 65 | B29: =FourBar2($C$11,$C$12,$C$13,$C$10,1,A29*D_R())/D_R() -> 5.576582082 | C29: 77.81851039 | D29: 72.2419283
A30: 70 | B30: =FourBar2($C$11,$C$12,$C$13,$C$10,1,A30*D_R())/D_R() -> 5.356914055 | C30: 81.06680171 | D30: 75.70988765
A31: 75 | B31: =FourBar2($C$11,$C$12,$C$13,$C$10,1,A31*D_R())/D_R() -> 5.171175891 | C31: 84.40586519 | D31: 79.2346893
A32: 80 | B32: =FourBar2($C$11,$C$12,$C$13,$C$10,1,A32*D_R())/D_R() -> 5.016504742 | C32: 87.81728164 | D32: 82.8007769
A33: 85 | B33: =FourBar2($C$11,$C$12,$C$13,$C$10,1,A33*D_R())/D_R() -> 4.890703742 | C33: 91.28446211 | D33: 86.39375837
A34: 90 | B34: =FourBar2($C$11,$C$12,$C$13,$C$10,1,A34*D_R())/D_R() -> 4.792184476 | C34: 94.79218448 | D34: 90
A35: 95 | B35: =FourBar2($C$11,$C$12,$C$13,$C$10,1,A35*D_R())/D_R() -> 4.719925161 | C35: 98.32616679 | D35: 93.60624163
A36: 100 | B36: =FourBar2($C$11,$C$12,$C$13,$C$10,1,A36*D_R())/D_R() -> 4.673445285 | C36: 101.8726684 | D36: 97.1992231
A37: 105 | B37: =FourBar2($C$11,$C$12,$C$13,$C$10,1,A37*D_R())/D_R() -> 4.652796869 | C37: 105.4181076 | D37: 100.7653107
A38: 110 | B38: =FourBar2($C$11,$C$12,$C$13,$C$10,1,A38*D_R())/D_R() -> 4.658572287 | C38: 108.9486846 | D38: 104.2901123
A39: 115 | B39: =FourBar2($C$11,$C$12,$C$13,$C$10,1,A39*D_R())/D_R() -> 4.691928341 | C39: 112.45 | D39: 107.7580717
A40: 120 | B40: =FourBar2($C$11,$C$12,$C$13,$C$10,1,A40*D_R())/D_R() -> 4.754625869 | C40: 115.9066594 | D40: 111.1520336
A41: 125 | B41: =FourBar2($C$11,$C$12,$C$13,$C$10,1,A41*D_R())/D_R() -> 4.849083089 | C41: 119.3018622 | D41: 114.4527791
A42: 130 | B42: =FourBar2($C$11,$C$12,$C$13,$C$10,1,A42*D_R())/D_R() -> 4.978438839 | C42: 122.6169774 | D42: 117.6385385
A43: 135 | B43: =FourBar2($C$11,$C$12,$C$13,$C$10,1,A43*D_R())/D_R() -> 5.146618179 | C43: 125.8311242 | D43: 120.684506
A44: 140 | B44: =FourBar2($C$11,$C$12,$C$13,$C$10,1,A44*D_R())/D_R() -> 5.358386842 | C44: 128.9207965 | D44: 123.5624097
A45: 145 | B45: =FourBar2($C$11,$C$12,$C$13,$C$10,1,A45*D_R())/D_R() -> 5.619372173 | C45: 131.8595991 | D45: 126.2402269
A46: 150 | B46: =FourBar2($C$11,$C$12,$C$13,$C$10,1,A46*D_R())/D_R() -> 5.936016735 | C46: 134.6182054 | D46: 128.6821887
A47: 155 | B47: =FourBar2($C$11,$C$12,$C$13,$C$10,1,A47*D_R())/D_R() -> 6.315418897 | C47: 137.1646892 | D47: 130.8492703
A48: 160 | B48: =FourBar2($C$11,$C$12,$C$13,$C$10,1,A48*D_R())/D_R() -> 6.765008236 | C48: 139.4654045 | D48: 132.7003963
A49: 165 | B49: =FourBar2($C$11,$C$12,$C$13,$C$10,1,A49*D_R())/D_R() -> 7.292012836 | C49: 141.4865654 | D49: 134.1945526
A50: 170 | B50: =FourBar2($C$11,$C$12,$C$13,$C$10,1,A50*D_R())/D_R() -> 7.902713054 | C50: 143.196549 | D50: 135.2938359
A51: 175 | B51: =FourBar2($C$11,$C$12,$C$13,$C$10,1,A51*D_R())/D_R() -> 8.601547126 | C51: 144.5687144 | D51: 135.9671673
A52: 180 | B52: =FourBar2($C$11,$C$12,$C$13,$C$10,1,A52*D_R())/D_R() -> 9.39022158 | C52: 145.5842309 | D52: 136.1940094 | E52: =180-D52 -> 43.80599064
A53: 185 | B53: =FourBar2($C$11,$C$12,$C$13,$C$10,1,A53*D_R())/D_R() -> 10.26703918 | C53: 146.2342065 | D53: 135.9671673
A54: =180+D8 -> 191.5369667 | B54: =FourBar2($C$11,$C$12,$C$13,$C$10,1,A54*D_R())/D_R() -> 11.53696669 | C54: 146.5369667 | D54: 135
A55: 195 | B55: =FourBar2($C$11,$C$12,$C$13,$C$10,1,A55*D_R())/D_R() -> 12.26021215 | C55: 146.4547647 | D55: 134.1945526
A56: 200 | B56: =FourBar2($C$11,$C$12,$C$13,$C$10,1,A56*D_R())/D_R() -> 13.3561594 | C56: 146.0565557 | D56: 132.7003963
A57: 205 | B57: =FourBar2($C$11,$C$12,$C$13,$C$10,1,A57*D_R())/D_R() -> 14.50092441 | C57: 145.3501947 | D57: 130.8492703
A58: 210 | B58: =FourBar2($C$11,$C$12,$C$13,$C$10,1,A58*D_R())/D_R() -> 15.67986415 | C58: 144.3620529 | D58: 128.6821887
A59: 215 | B59: =FourBar2($C$11,$C$12,$C$13,$C$10,1,A59*D_R())/D_R() -> 16.87795941 | C59: 143.1181863 | D59: 126.2402269
A60: 220 | B60: =FourBar2($C$11,$C$12,$C$13,$C$10,1,A60*D_R())/D_R() -> 18.08031544 | C60: 141.6427251 | D60: 123.5624097
A61: 225 | B61: =FourBar2($C$11,$C$12,$C$13,$C$10,1,A61*D_R())/D_R() -> 19.27245653 | C61: 139.9569625 | D61: 120.684506
A62: 230 | B62: =FourBar2($C$11,$C$12,$C$13,$C$10,1,A62*D_R())/D_R() -> 20.44045856 | C62: 138.0789971 | D62: 117.6385385
A63: 235 | B63: =FourBar2($C$11,$C$12,$C$13,$C$10,1,A63*D_R())/D_R() -> 21.57097268 | C63: 136.0237518 | D63: 114.4527791
A64: 240 | B64: =FourBar2($C$11,$C$12,$C$13,$C$10,1,A64*D_R())/D_R() -> 22.65118748 | C64: 133.8032211 | D64: 111.1520336
A65: 245 | B65: =FourBar2($C$11,$C$12,$C$13,$C$10,1,A65*D_R())/D_R() -> 23.66876545 | C65: 131.4268371 | D65: 107.7580717
A66: 250 | B66: =FourBar2($C$11,$C$12,$C$13,$C$10,1,A66*D_R())/D_R() -> 24.61177859 | C66: 128.9018909 | D66: 104.2901123
A67: 255 | B67: =FourBar2($C$11,$C$12,$C$13,$C$10,1,A67*D_R())/D_R() -> 25.46865981 | C67: 126.2339705 | D67: 100.7653107
A68: 260 | B68: =FourBar2($C$11,$C$12,$C$13,$C$10,1,A68*D_R())/D_R() -> 26.22818162 | C68: 123.4274047 | D68: 97.1992231
A69: 265 | B69: =FourBar2($C$11,$C$12,$C$13,$C$10,1,A69*D_R())/D_R() -> 26.87947046 | C69: 120.4857121 | D69: 93.60624163
A70: 270 | B70: =FourBar2($C$11,$C$12,$C$13,$C$10,1,A70*D_R())/D_R() -> 27.41206385 | C70: 117.4120639 | D70: 90
A71: 275 | B71: =FourBar2($C$11,$C$12,$C$13,$C$10,1,A71*D_R())/D_R() -> 27.81601742 | C71: 114.2097758 | D71: 86.39375837
A72: 280 | B72: =FourBar2($C$11,$C$12,$C$13,$C$10,1,A72*D_R())/D_R() -> 28.08206854 | C72: 110.8828454 | D72: 82.8007769
A73: 285 | B73: =FourBar2($C$11,$C$12,$C$13,$C$10,1,A73*D_R())/D_R() -> 28.20186373 | C73: 107.436553 | D73: 79.2346893
A74: 290 | B74: =FourBar2($C$11,$C$12,$C$13,$C$10,1,A74*D_R())/D_R() -> 28.16825612 | C74: 103.8781438 | D74: 75.70988765
A75: 295 | B75: =FourBar2($C$11,$C$12,$C$13,$C$10,1,A75*D_R())/D_R() -> 27.97567737 | C75: 100.2176057 | D75: 72.2419283
A76: 300 | B76: =FourBar2($C$11,$C$12,$C$13,$C$10,1,A76*D_R())/D_R() -> 27.62058484 | C76: 96.46855126 | D76: 68.84796642
A77: 305 | B77: =FourBar2($C$11,$C$12,$C$13,$C$10,1,A77*D_R())/D_R() -> 27.10197768 | C77: 92.64919854 | D77: 65.54722086
A78: 310 | B78: =FourBar2($C$11,$C$12,$C$13,$C$10,1,A78*D_R())/D_R() -> 26.42196533 | C78: 88.78342682 | D78: 62.36146149
A79: 315 | B79: =FourBar2($C$11,$C$12,$C$13,$C$10,1,A79*D_R())/D_R() -> 25.58635588 | C79: 84.90184987 | D79: 59.31549399
A80: 320 | B80: =FourBar2($C$11,$C$12,$C$13,$C$10,1,A80*D_R())/D_R() -> 24.60521036 | C80: 81.04280065 | D80: 56.43759029
A81: 325 | B81: =FourBar2($C$11,$C$12,$C$13,$C$10,1,A81*D_R())/D_R() -> 23.49328228 | C81: 77.25305535 | D81: 53.75977307
A82: 330 | B82: =FourBar2($C$11,$C$12,$C$13,$C$10,1,A82*D_R())/D_R() -> 22.27023139 | C82: 73.58804268 | D82: =+C82-B82 -> 51.3178113
A83: 335 | B83: =FourBar2($C$11,$C$12,$C$13,$C$10,1,A83*D_R())/D_R() -> 20.96047537 | C83: 70.1112051 | D83: 49.15072973
A84: 340 | B84: =FourBar2($C$11,$C$12,$C$13,$C$10,1,A84*D_R())/D_R() -> 19.5925366 | C84: 66.89214031 | D84: 47.29960371
A85: 345 | B85: =FourBar2($C$11,$C$12,$C$13,$C$10,1,A85*D_R())/D_R() -> 18.19777577 | C85: 64.00322321 | D85: 45.80544745
A86: 350 | B86: =FourBar2($C$11,$C$12,$C$13,$C$10,1,A86*D_R())/D_R() -> 16.80850432 | C86: 61.5146684 | D86: 44.70616409
A87: 355 | B87: =FourBar2($C$11,$C$12,$C$13,$C$10,1,A87*D_R())/D_R() -> 15.45563851 | C87: 59.48847122 | D87: 44.03283271
A88: 360 | B88: =FourBar2($C$11,$C$12,$C$13,$C$10,1,A88*D_R())/D_R() -> 14.16625902 | C88: 57.97224966 | D88: 43.80599064
A89: 365 | B89: =FourBar2($C$11,$C$12,$C$13,$C$10,1,A89*D_R())/D_R() -> 12.96157529 | C89: 56.994408 | D89: 44.03283271
A90: =360+D8 -> 371.5369667 | B90: =FourBar2($C$11,$C$12,$C$13,$C$10,1,A90*D_R())/D_R() -> 11.53696669 | C90: 56.53696669 | D90: 45
